bitfinex-derivatives/quotes_SOLF0:USTF0_20240815
["timestamp","ask_amount","ask_price","bid_price","bid_amount"]
[1723702960156,7.71993238,141.54,141.42,40.75]
[1723702960357,40.75,141.53,141.4,7.041]
[1723702960561,40.75,141.5,141.4,7.041]
[1723702960754,40.75,141.7,141.43,40.75]
[1723702960955,7.72185365,141.61,141.41,7.041]
[1723702961256,16.54185365,141.61,141.48,40.75]
[1723702961452,8.82,141.61,141.48,40.75]
[1723702961849,40.75,141.6,141.45,40.75]
[1723702962258,40.75,141.6,141.45,44.2846]
[1723702962556,8.82,141.61,141.44,0.04896554]
[1723702962557,40.75,141.58,141.44,0.04896554]
[1723702963150,40.75,141.58,141.42,42.1027]
[1723702963354,40.75,141.58,141.42,1.3527]
[1723702963555,40.75,141.55,141.42,1.3527]
[1723702964057,0.05307843,141.51,141.49,0.05366323]
[1723702964654,40.75,141.55,141.49,0.05366323]
[1723702964655,33.76807843,141.55,141.49,0.05366323]
[1723702964865,8.82,141.5,141.49,0.05366323]
[1723702965062,33.76807843,141.55,141.49,0.05366323]
[1723702965063,9.18,141.53,141.49,0.05366323]
[1723702966073,3.57081902,141.52,141.49,0.05366323]
[1723702966366,0.05327525,141.52,141.49,0.05366323]
[1723702966759,9.18,141.51,141.49,0.05366323]
[1723702966963,0.05327525,141.52,141.49,0.05366323]
[1723702967166,9.18,141.5,141.49,0.05366323]
[1723702967363,9.18,141.51,141.49,0.05366323]
[1723702967771,0.05327525,141.52,141.49,0.05366323]
[1723702973178,0.05327525,141.52,141.51,3.5331]
[1723702973583,40.75,141.65,141.5,40.75]
[1723702973880,40.75,141.6,141.49,1.40206323]
[1723702974379,40.75,141.6,141.49,1.3484]
[1723702974580,40.75,141.6,141.53,3.5326]
[1723702974883,40.75,141.62,141.53,3.5326]
[1723702975268,40.75,141.6,141.49,1.3484]
[1723702975976,0.04771429,141.56,141.53,0.04990013]
[1723702976669,40.75,141.65,141.53,40.79990013]
[1723702976867,40.75,141.65,141.53,40.75]
[1723702977076,40.75,141.65,141.58,3.5311]
[1723702977277,40.75,141.65,141.53,40.75]
[1723702978174,40.75,141.65,141.55,3.532]
[1723702978380,40.75,141.65,141.53,40.75]
[1723702978678,0.05005274,141.6,141.58,3.58142676]
[1723702978875,0.05005274,141.6,141.58,0.05032676]
[1723702979177,40.75,141.65,141.58,0.05032676]
[1723702979578,40.75,141.67,141.58,0.05032676]
[1723702979779,0.04514013,141.6,141.59,3.5311]
[1723702979978,40.75,141.69,141.58,40.80032676]
[1723702980282,40.75,141.69,141.58,40.75]
[1723702980974,9.18,141.72,141.55,40.75]
[1723702980975,40.75,141.67,141.55,40.75]
[1723702981283,40.75,141.63,141.5,40.75]
[1723702981475,40.75,141.61,141.49,1.3484]
[1723702981877,40.75,141.61,141.54,3.5321]
[1723702982277,40.75,141.61,141.5,1.3489]
[1723702982584,40.75,141.59,141.5,1.3489]
[1723702982883,40.75,141.56,141.54,0.04908516]
[1723702983081,9.18,141.55,141.54,0.04908516]
[1723702983280,9.18,141.55,141.41,40.75]
[1723702983477,9.18,141.55,141.36,1.3489]
[1723702983478,40.75,141.51,141.38,40.75]
[1723702983687,40.75,141.51,141.36,2.6555]
[1723702983688,40.75,141.48,141.36,2.6555]
[1723702983872,40.75,141.48,141.37,40.75]
[1723702984079,40.75,141.48,141.36,2.6555]
[1723702984391,40.75,141.48,141.37,40.75]
[1723702984877,9.18,141.49,141.38,40.75]
[1723702985282,9.18,141.49,141.41,0.05204947]
[1723702985479,9.18,141.49,141.41,3.58754947]
[1723702985687,69.01,141.53,141.41,40.80204947]
[1723702985889,40.75,141.56,141.43,40.75]
[1723702986186,40.75,141.6,141.48,40.75]
[1723702986376,33.71,141.63,141.51,40.75]
[1723702986573,40.75,141.6,141.49,2.5832]
[1723702987582,40.75,141.63,141.54,3.5321]
[1723702987778,9.18,141.65,141.49,2.5832]
[1723702987983,0.04742819,141.56,141.53,40.79718952]
[1723702988186,49.93,141.65,141.53,40.79718952]
[1723702988490,40.75,141.65,141.53,40.79718952]
[1723702988881,40.75,141.65,141.54,9.18]
[1723702989080,33.71,141.65,141.54,9.18]
[1723702989787,40.75,141.63,141.51,40.75]
[1723702990084,40.75,141.63,141.49,43.3332]
[1723702990384,49.93,141.7,141.49,43.3332]
[1723702990385,0.04539127,141.61,141.58,0.05141489]
[1723702990590,40.79539127,141.61,141.58,0.05141489]
[1723702990787,33.75539127,141.61,141.58,0.05141489]
[1723702990987,40.75,141.64,141.58,0.05141489]
[1723702991188,40.75,141.62,141.58,0.05141489]
[1723702991593,40.75,141.62,141.49,52.5132]
[1723702991892,40.75,141.59,141.49,11.7632]
[1723702992990,0.04741499,141.57,141.54,0.04566605]
[1723702993190,40.75,141.62,141.54,0.04566605]
[1723702993391,40.75,141.64,141.54,0.04566605]
[1723702993789,40.75,141.64,141.52,40.75]
[1723702993991,40.75,141.64,141.5,1.2601]
[1723702994588,40.75,141.62,141.56,3.5316]
[1723702994792,0.04671122,141.58,141.56,3.5812922]
[1723702994995,40.75,141.64,141.56,0.0496922]
[1723702995292,40.75,141.64,141.54,40.75]
[1723702995493,40.75,141.66,141.54,40.75]
[1723702996292,9.2,141.71,141.52,3.54524125]
[1723702996497,0.04527742,141.61,141.59,0.0525806]
[1723702996694,40.75,141.69,141.59,0.0525806]
[1723702996993,40.75,141.69,141.65,3.5294]
[1723702997393,40.75,141.69,141.66,3.5293]
[1723702997594,40.75,141.69,141.58,10.4539]
[1723702998093,40.75,141.69,141.65,3.5294]
[1723702998290,40.75,141.69,141.58,10.4539]
[1723702998486,40.75,141.69,141.58,1.2539]
[1723702998694,40.80020814,141.69,141.66,0.04917505]
[1723702999292,40.75,141.67,141.58,1.2539]
[1723702999492,40.73,141.67,141.58,1.2539]
[1723702999692,40.73,141.67,141.66,0.05314863]
[1723702999997,40.73,141.67,141.58,1.2539]
[1723703000198,40.73,141.67,141.61,3.5304]
[1723703000397,40.73,141.67,141.58,1.2539]
[1723703000900,40.75,141.64,141.58,1.2539]
[1723703001086,40.75,141.64,141.61,0.05061839]
[1723703001291,40.80382161,141.64,141.63,3.5301]
[1723703001496,0.05382161,141.64,141.63,3.5301]
[1723703002287,40.75,141.72,141.61,0.05061839]
[1723703002486,40.75,141.72,141.61,1.31971839]
[1723703002788,40.75,141.69,141.66,3.5292]
[1723703002993,40.75,141.69,141.61,1.2691]
[1723703003296,40.75,141.71,141.61,1.2691]
[1723703003696,0.05163686,141.66,141.64,0.04512705]
[1723703003896,40.75,141.74,141.64,0.04512705]
[1723703004095,40.75,141.76,141.64,40.79512705]
[1723703004600,40.75,141.76,141.73,3.5276]
[1723703004806,40.75,141.76,141.64,40.75]
[1723703005095,40.75,141.78,141.67,9.2]
[1723703005297,40.75,141.78,141.68,1.3291]
[1723703005504,0.04894352,141.76,141.73,0.05288064]
[1723703006996,0.04894352,141.76,141.75,3.5271]
[1723703007601,40.75,141.84,141.78,3.5261]
[1723703008297,40.75,141.84,141.71,9.2]
[1723703008701,40.75,141.84,141.72,42.0966]
[1723703008899,40.75,141.84,141.8,3.5258]
[1723703009104,40.75,141.84,141.76,0.05213635]
[1723703009803,40.75,141.86,141.75,40.75]
[1723703010006,40.75,141.89,141.77,40.75]
[1723703010300,40.75,141.89,141.82,3.5254]
[1723703010507,40.75,141.89,141.79,0.04450306]
[1723703010906,40.75,141.89,141.86,3.5241]
[1723703011098,40.75,141.89,141.78,9.2]
[1723703011301,40.75,141.87,141.78,9.2]
[1723703011602,40.75,141.87,141.86,0.04473055]
[1723703011997,40.75,141.89,141.86,0.04473055]
[1723703012297,40.75,141.92,141.8,40.75]
[1723703012503,40.75,142.05,141.83,40.75]
[1723703012504,40.75,141.95,141.83,40.75]
[1723703012708,0.3449,142.02,141.78,9.2]
[1723703012709,40.75,141.97,141.85,40.75]
[1723703012902,40.75,141.97,141.86,9.25108421]
[1723703013207,40.75,141.97,141.91,3.5231]
[1723703013402,40.75,141.97,141.86,9.25108421]
[1723703013596,40.75,141.97,141.86,9.2]
[1723703014403,40.75,141.99,141.9,0.0450629]
[1723703014611,40.75,141.92,141.9,0.0450629]
[1723703014811,40.73,141.92,141.9,0.0450629]
[1723703015007,40.73,141.92,141.84,1.3337]
[1723703015210,40.75,141.89,141.79,10.4684]
[1723703015416,40.75,141.89,141.79,11.7279]
[1723703016105,40.75,141.92,141.83,0.0487696]
[1723703016613,40.75,141.92,141.81,40.75]
[1723703016912,40.75,141.97,141.9,3.5233]
[1723703017113,40.75,141.97,141.86,0.05051218]
[1723703017410,40.75,141.97,141.9,3.5232]
[1723703017612,40.75,141.94,141.86,0.05051218]
[1723703017807,40.75,141.94,141.83,40.75]
[1723703018011,40.75,141.97,141.83,40.75]
[1723703018212,40.75,141.95,141.83,40.75]
[1723703018411,40.75,141.95,141.89,0.04481446]
[1723703018613,40.75,141.92,141.89,0.04481446]
[1723703019320,40.75,141.92,141.85,3.5246]
[1723703019612,40.75,141.97,141.8,3.5256]
[1723703019613,40.75,141.87,141.8,3.5256]
[1723703019815,40.75,141.87,141.79,2.5279]
[1723703020211,40.75,141.87,141.81,3.5254]
[1723703020411,40.75,141.84,141.75,8.84]
[1723703020617,40.75,141.82,141.78,3.5263]
[1723703020816,40.75,141.82,141.73,1.3244]
[1723703021523,40.75,141.8,141.7,10.0682]
[1723703021709,40.75,141.8,141.7,11.3248]
[1723703022024,40.75,141.8,141.75,3.5269]
[1723703022217,40.75,141.8,141.76,0.04864414]
[1723703023214,40.75,141.8,141.76,3.57524414]
[1723703023517,40.75,141.91,141.76,0.04864414]
[1723703023518,0.04835048,141.79,141.76,0.04864414]
[1723703023919,0.04835048,141.79,141.78,3.5264]
[1723703024125,49.59,141.89,141.76,40.79864414]
[1723703024421,49.59,141.89,141.83,3.5251]
[1723703024620,40.75,141.89,141.79,40.75]
[1723703025023,40.75,141.89,141.76,40.75]
[1723703025415,40.75,141.89,141.79,40.75]
[1723703025612,49.59,141.92,141.81,0.04844306]
[1723703025818,40.75,141.92,141.81,0.04844306]
[1723703026019,40.75,141.92,141.86,3.5241]
[1723703026322,40.75,141.94,141.81,40.75]
[1723703026519,40.75,141.92,141.85,3.5245]
[1723703026720,40.75,141.92,141.85,0.04457742]
[1723703027320,40.75,141.89,141.85,0.04457742]
[1723703028217,40.75,141.91,141.85,3.56897742]
[1723703028421,40.75,141.91,141.85,0.04457742]
[1723703028625,40.75,141.89,141.8,1.324]
[1723703028918,8.84,141.95,141.77,8.84]
[1723703028919,40.75,141.87,141.77,8.84]
[1723703029230,8.84,141.88,141.87,0.04567906]
[1723703029421,49.59,141.88,141.74,40.75]
[1723703029621,49.59,141.88,141.72,3.8666]
[1723703029622,49.59,141.88,141.76,40.75]
[1723703029919,8.84,141.88,141.83,3.525]
[1723703030428,40.75,141.9,141.79,40.75]
[1723703030621,40.75,141.92,141.79,40.75]
[1723703030923,0.0459583,141.87,141.84,3.57102717]
[1723703031318,0.0459583,141.87,141.84,0.04632717]
[1723703032123,0.0459583,141.87,141.85,3.5244]
[1723703032327,0.0459583,141.87,141.84,0.04632717]
[1723703032720,0.0459583,141.87,141.84,3.57112717]
[1723703032925,0.0459583,141.87,141.84,0.04632717]
[1723703033817,0.0459583,141.87,141.85,3.5244]
[1723703034021,0.0459583,141.87,141.84,0.04632717]
[1723703034525,0.0459583,141.87,141.84,3.57092717]
[1723703034729,0.0459583,141.87,141.84,0.04632717]
[1723703035630,0.0459583,141.87,141.86,3.5244]
[1723703035825,40.75,141.97,141.84,0.04632717]
[1723703036025,40.75,141.97,141.9,3.5232]
[1723703036731,40.75,141.97,141.89,3.5235]
[1723703036932,40.75,141.97,141.84,8.82]
[1723703037431,40.75,141.97,141.89,0.04600847]
[1723703037731,40.75,141.97,141.89,3.56950847]
[1723703038228,40.75,141.97,141.89,0.04600847]
[1723703041432,40.75,141.94,141.89,0.04600847]
[1723703041636,40.75,141.97,141.89,0.04600847]
[1723703041936,40.75,141.97,141.9,3.5232]
[1723703042337,40.75,141.97,141.91,3.5231]
[1723703042533,40.75,141.97,141.86,40.75]
[1723703042934,49.59,141.99,141.93,3.57534304]
[1723703043136,49.59,141.99,141.93,3.5226]
[1723703043442,0.3469,142.01,141.95,0.05327294]
[1723703043938,0.3469,142.01,141.91,8.46]
[1723703044242,40.75,142.05,141.97,0.04866437]
[1723703044740,40.73,142.05,141.97,0.04866437]
[1723703045234,40.73,142.05,141.98,3.5213]
[1723703045639,40.73,142.05,141.97,3.5216]
[1723703045841,40.73,142.05,141.97,11.9816]
[1723703046040,40.73,142.05,142.0,0.04980046]
[1723703049538,3.99973874,142.1,142.0,0.04980046]
[1723703049539,40.75,142.08,142.0,0.04980046]
[1723703049737,40.75,142.08,142.02,3.5204]
[1723703050139,41.1439,142.1,142.0,0.04980046]
[1723703050541,41.1439,142.1,141.99,1.2929]
[1723703050750,40.75,142.08,141.99,1.2929]
[1723703050933,40.75,142.06,141.93,42.0429]
[1723703051138,40.75,142.06,142.04,0.04770413]
[1723703051440,0.3939,142.1,142.04,0.04770413]
[1723703051646,40.75,142.12,142.04,3.56760413]
[1723703051942,40.75,142.12,142.04,3.5199]
[1723703052145,40.75,142.12,142.07,0.05359877]
[1723703053641,40.75,142.05,141.95,2.5883]
[1723703054034,40.75,142.05,141.97,3.5216]
[1723703054442,40.75,142.05,141.95,2.5883]
[1723703054746,40.75,142.05,141.98,3.5213]
[1723703055138,0.04872913,142.01,142.0,0.04937751]
[1723703055340,0.04872913,142.01,141.9,28.18]
[1723703055646,40.75,141.98,141.85,40.75]
[1723703056039,40.75,141.98,141.85,44.32007042]
[1723703056235,40.75,141.98,141.85,40.75]
[1723703056640,0.04743371,141.93,141.9,0.05347758]
[1723703057744,40.79743371,141.93,141.9,0.05347758]
[1723703058048,40.75,141.91,141.78,40.75]
[1723703058641,40.75,141.91,141.79,3.51877993]
[1723703058934,40.75,141.86,141.73,40.75]
[1723703059442,40.75,141.88,141.76,40.75]
[1723703059639,0.04612727,141.86,141.84,0.05025017]
[1723703060532,0.04612727,141.86,141.79,3.48390215]
[1723703060744,0.04612727,141.86,141.8,1.2933]
[1723703061040,0.04612727,141.86,141.84,3.57755934]
[1723703061242,0.04612727,141.86,141.84,0.05275934]
[1723703061851,3.5246,141.85,141.84,0.05275934]
[1723703063043,3.57052727,141.86,141.84,0.05275934]
[1723703063250,0.04612727,141.86,141.84,0.05275934]
[1723703063547,3.5246,141.85,141.84,0.05275934]
[1723703063844,0.04612727,141.86,141.84,0.05275934]
[1723703064738,3.57062727,141.86,141.84,0.05275934]
[1723703065335,0.04612727,141.86,141.84,0.05275934]
[1723703068451,49.21,141.95,141.84,0.05275934]
[1723703068749,49.21,141.95,141.83,40.75]
[1723703069356,40.75,141.95,141.83,40.75]
[1723703069560,3.5224,141.94,141.89,3.5234]
[1723703069746,0.05146973,141.9,141.88,0.04681914]
[1723703069951,40.75,141.93,141.88,0.04681914]
[1723703070253,40.79491146,141.9,141.81,2.7067]
[1723703070451,40.79491146,141.9,141.89,0.04508628]
[1723703070655,3.524,141.88,141.83,3.525]
[1723703070956,40.75,141.9,141.81,2.7067]
[1723703071361,3.5243,141.87,141.82,3.5253]
[1723703071750,40.75,141.9,141.77,40.75]
[1723703071949,40.75,141.88,141.77,40.75]
[1723703072257,0.04850142,141.86,141.83,0.05142654]
[1723703072454,3.57290142,141.86,141.83,0.05142654]
[1723703072756,0.04850142,141.86,141.83,0.05142654]
[1723703072948,8.24,142.05,141.85,40.75]
[1723703073255,40.75,142.01,141.89,40.75]
[1723703073960,0.2398,142.02,141.89,40.75]
[1723703074648,0.04672697,141.96,141.94,0.04530073]
[1723703075250,3.56882697,141.96,141.94,0.04530073]
[1723703075451,40.75,141.99,141.94,0.04530073]
[1723703075962,0.05080863,141.96,141.94,0.04530073]
[1723703076548,3.57280863,141.96,141.94,0.04530073]
[1723703076754,0.05080863,141.96,141.94,0.04530073]
[1723703077856,3.5221,141.95,141.94,0.04530073]
[1723703079059,0.05080863,141.96,141.94,0.04530073]
[1723703081357,40.80080863,141.96,141.86,2.55]
[1723703081560,40.75,141.93,141.86,1.2757]
[1723703081862,40.75,141.91,141.79,42.0319]
[1723703082057,40.75,141.91,141.8,1.3577]
[1723703082253,3.5243,141.87,141.82,3.5252]
[1723703082754,3.57469314,141.87,141.84,0.0484991]
[1723703083058,0.05039314,141.87,141.84,0.0484991]
[1723703083259,40.75,141.86,141.84,0.0484991]
[1723703083451,40.75,141.84,141.74,8.24]
[1723703084458,40.75,141.89,141.78,40.75]
[1723703084761,8.24,141.91,141.78,40.75]
[1723703084762,3.5234,141.9,141.8,40.75]
[1723703084962,8.24,141.91,141.81,1.3181]
[1723703085159,40.75,141.89,141.83,3.5249]
[1723703085364,3.5241,141.88,141.83,3.5249]
[1723703085565,0.04777777,141.87,141.81,1.3181]
[1723703085757,0.04777777,141.87,141.84,0.05326891]
[1723703086862,0.04777777,141.87,141.84,3.57806891]
[1723703087065,0.04777777,141.87,141.84,0.05326891]
[1723703088061,40.79777777,141.87,141.65,7.0589]
[1723703088263,40.79777777,141.87,141.74,2.5241]
[1723703088655,3.5248,141.85,141.8,3.5256]
[1723703089160,40.75,141.87,141.74,2.5241]
[1723703089161,3.5244,141.86,141.81,3.5254]
[1723703089363,0.04474086,141.84,141.81,0.04992281]
[1723703090166,0.04474086,141.84,141.82,3.5252]
[1723703090361,0.04474086,141.84,141.81,0.04992281]
[1723703091262,0.04474086,141.84,141.81,3.57532281]
[1723703091470,0.04474086,141.84,141.81,0.04992281]
[1723703091772,0.04474086,141.84,141.81,3.57552281]
[1723703091971,0.04474086,141.84,141.81,0.04992281]
[1723703092971,3.56964086,141.84,141.81,0.04992281]
[1723703093175,0.04474086,141.84,141.81,0.04992281]
[1723703093567,3.56974086,141.84,141.81,0.04992281]
[1723703094064,40.79474086,141.84,141.81,0.04992281]
[1723703094460,40.75,141.82,141.74,2.5241]
[1723703094969,3.5263,141.79,141.74,2.5241]
[1723703095165,40.75,141.82,141.74,2.5241]
[1723703095567,3.5259,141.8,141.74,2.5241]
[1723703095771,3.5259,141.8,141.75,3.5269]
[1723703096068,3.5259,141.8,141.77,0.04498312]
[1723703096263,0.04984897,141.79,141.77,0.04498312]
[1723703097570,3.57604897,141.79,141.77,0.04498312]
[1723703097975,3.5263,141.78,141.77,0.04498312]
[1723703098172,0.04984897,141.79,141.77,0.04498312]
[1723703098977,3.57614897,141.79,141.77,0.04498312]
[1723703099475,0.04984897,141.79,141.77,0.04498312]
[1723703099676,40.75,141.78,141.77,0.04498312]
[1723703100071,44.2763,141.78,141.77,0.04498312]
[1723703100670,44.2763,141.78,141.67,3.9061]
[1723703100671,40.75,141.78,141.67,3.9061]
[1723703100877,40.75,141.75,141.67,3.9061]
[1723703101075,40.75,141.75,141.67,2.6648]
[1723703101872,40.75,141.77,141.67,43.4148]
[1723703102073,8.0,141.79,141.69,40.75]
[1723703102280,3.5261,141.79,141.74,3.5271]
[1723703102676,0.05224723,141.75,141.7,0.04770482]
[1723703102878,0.05224723,141.75,141.69,40.75]
[1723703103074,0.05224723,141.75,141.67,2.6648]
[1723703103376,3.5272,141.75,141.71,0.05382336]
[1723703103580,0.04643915,141.73,141.71,0.05382336]
[1723703103976,40.75,141.82,141.71,0.05382336]
[1723703103977,8.0,141.79,141.71,0.05382336]
[1723703104178,0.05106607,141.73,141.71,0.05382336]
[1723703104380,3.5271,141.76,141.67,10.6648]
[1723703104574,40.75,141.77,141.74,0.05112477]
[1723703104883,3.5271,141.76,141.71,3.5279]
[1723703105180,0.04644635,141.73,141.71,3.5279]
[1723703105575,0.04644635,141.73,141.72,3.5725935]
[1723703106083,0.04644635,141.73,141.72,3.5278]
[1723703106576,3.5264,141.78,141.71,0.05414194]
[1723703106778,40.75,141.82,141.71,0.05414194]
[1723703107077,40.75,141.84,141.72,40.75]
[1723703107284,40.75,141.84,141.73,1.2988]
[1723703107979,0.04947389,141.8,141.78,3.5262]
[1723703108179,0.04947389,141.8,141.77,0.04556072]
[1723703108377,33.86,141.85,141.75,1.2955]
[1723703108670,33.86,141.89,141.77,0.05207216]
[1723703108875,0.04616809,141.8,141.77,0.05207216]
[1723703109175,33.86,141.89,141.78,33.86]
[1723703109375,8.0,141.92,141.81,33.86]
[1723703109576,33.86,141.93,141.83,33.86]
[1723703109772,33.86,141.95,141.84,1.2955]
[1723703110083,40.63,141.96,141.88,3.5237]
[1723703110280,40.63,141.94,141.84,1.2955]
[1723703110478,44.1536,141.89,141.88,0.05101799]
[1723703110677,44.1536,141.89,141.88,0.00061799]
[1723703110980,44.1536,141.89,141.76,41.9425]
[1723703110981,40.63,141.89,141.76,10.6724]
[1723703111173,44.1548,141.85,141.77,1.291]
[1723703111579,40.63,141.85,141.77,1.291]
[1723703112177,40.63,141.83,141.76,1.3599]
[1723703112487,0.05390329,141.82,141.8,0.0456199]
[1723703113981,0.05390329,141.82,141.81,3.5256]
[1723703114579,40.63,141.89,141.84,3.5248]
[1723703114884,48.63,141.91,141.78,40.63]
[1723703115179,40.63,141.94,141.81,40.63]
[1723703115378,40.63,141.94,141.79,1.3172]
[1723703115379,40.63,141.94,141.83,40.63]
[1723703115585,3.5224,141.94,141.84,1.2672]
[1723703115885,0.05281431,141.9,141.87,0.04849809]
[1723703116282,40.63,141.98,141.85,40.63]
[1723703116488,40.63,141.98,141.85,48.63]
[1723703116881,0.04600323,141.9,141.87,0.04816923]
[1723703117081,40.63,141.98,141.87,0.04816923]
[1723703117782,40.63,141.98,141.85,48.63]
[1723703118184,0.04825817,141.93,141.9,0.05119625]
[1723703119185,0.04825817,141.93,141.91,3.523]
[1723703119382,0.04825817,141.93,141.9,0.05119625]
[1723703119579,0.04825817,141.93,141.92,3.5229]
[1723703119781,0.04825817,141.93,141.9,1.40379625]
[1723703119983,0.04825817,141.93,141.9,0.05119625]
[1723703120587,0.04825817,141.93,141.92,3.5229]
[1723703121189,40.63,142.0,141.94,3.5222]
[1723703121591,44.1511,142.0,141.94,3.5222]
[1723703121793,40.63,142.0,141.94,3.5222]
[1723703122087,3.5212,141.99,141.94,3.5222]
[1723703122389,40.63,142.03,141.93,8.0]
[1723703122587,0.04528816,141.98,141.96,0.04942887]
[1723703122783,0.04528816,141.98,141.96,3.57112887]
[1723703122980,3.5208,142.01,141.94,1.3516]
[1723703122981,40.63,142.03,141.94,1.3516]
[1723703123485,0.04682492,141.98,141.96,3.57490131]
[1723703123983,40.63,142.01,141.96,0.05330131]
[1723703124391,3.5213,141.99,141.96,0.05330131]
[1723703124592,0.05343045,141.98,141.94,1.3516]
[1723703124883,0.05343045,141.98,141.9,98.63]
[1723703124884,3.5216,141.97,141.9,58.0]
[1723703125084,40.68343045,141.98,141.9,58.0]
[1723703125291,40.68343045,141.98,141.91,3.5229]
[1723703125488,3.5216,141.97,141.96,0.048051]
[1723703126092,0.05411448,141.96,141.93,3.5224]
[1723703126292,0.05411448,141.96,141.95,0.05154566]
[1723703126698,44.20601448,141.96,141.95,0.00224566]
[1723703127094,3.57601448,141.96,141.95,0.00224566]
[1723703127391,0.05411448,141.96,141.95,0.00224566]
[1723703127794,3.57601448,141.96,141.95,0.00224566]
[1723703128093,40.68411448,141.96,141.9,58.0]
[1723703129588,3.5226,141.93,141.92,0.0498441]
[1723703129998,33.81,141.94,141.92,0.0498441]
[1723703130200,37.3326,141.94,141.92,0.0498441]
[1723703130399,33.86411448,141.96,141.92,0.0498441]
[1723703130999,0.05411448,141.96,141.92,0.0498441]
[1723703131907,0.05411448,141.96,141.93,3.5225]
[1723703132291,0.05411448,141.96,141.92,0.0498441]
[1723703132490,0.05411448,141.96,141.92,3.5726441]
[1723703132889,0.05411448,141.96,141.92,0.0498441]
[1723703133089,0.05411448,141.96,141.93,1.3041]
[1723703133297,0.05411448,141.96,141.95,3.5221]
[1723703134000,0.05411448,141.96,141.94,4.7738]
[1723703134300,0.05411448,141.96,141.94,1.2515]
[1723703134896,0.05411448,141.96,141.95,3.5221]
[1723703135097,0.05411448,141.96,141.95,61.5221]
[1723703136001,0.05411448,141.96,141.95,58.0]
[1723703136198,0.05411448,141.96,141.95,57.764]
[1723703136400,0.05411448,141.96,141.92,0.0498441]
[1723703136904,3.5223,141.95,141.92,0.0498441]
[1723703137303,0.05411448,141.96,141.92,0.0498441]
[1723703137496,3.5224,141.94,141.92,0.0498441]
[1723703137692,33.81,141.95,141.92,0.0498441]
[1723703138693,0.05411448,141.96,141.92,0.0498441]
[1723703138896,33.81,141.95,141.92,0.0498441]
[1723703139300,33.81,141.95,141.92,3.5725441]
[1723703139597,0.05411448,141.96,141.92,0.0498441]
[1723703140198,0.05411448,141.96,141.94,3.5222]
[1723703140595,0.05411448,141.96,141.92,0.0498441]
[1723703140800,33.81,141.95,141.92,0.0498441]
[1723703141000,33.81,141.93,141.92,0.0498441]
[1723703141199,37.3326,141.93,141.92,0.0498441]
[1723703143599,33.81,141.95,141.92,0.0498441]
[1723703144299,3.5226,141.93,141.92,0.0498441]
[1723703144494,33.81,141.95,141.92,0.0498441]
[1723703144700,0.05411448,141.96,141.92,0.0498441]
[1723703145601,0.05411448,141.96,141.93,3.5225]
[1723703145795,0.05411448,141.96,141.92,0.0498441]
[1723703146708,0.05411448,141.96,141.93,3.5225]
[1723703147008,0.05411448,141.96,141.92,0.0498441]
[1723703147202,0.05411448,141.96,141.93,3.5226]
[1723703147505,0.05411448,141.96,141.92,0.0498441]
[1723703147907,3.5223,141.95,141.92,0.0498441]
[1723703148506,3.57611448,141.96,141.92,3.5725441]
[1723703148704,0.05411448,141.96,141.92,0.0498441]
[1723703148903,0.05411448,141.96,141.94,3.5222]
[1723703149608,0.05411448,141.96,141.92,0.0298441]
[1723703150309,0.05411448,141.96,141.94,3.5222]
[1723703150903,0.05411448,141.96,141.95,3.5221]
[1723703154404,0.05411448,141.96,141.94,3.5223]